[Event "*** SCC Grand Prix: Titled Tuesday Blitz"]
[Site "Chess.com"]
[Date "2020.06.09"]
[Round "1"]
[White "maciejos95"]
[Black "dosto07"]
[Result "1/2-1/2"]
[WhiteElo "2504"]
[BlackElo "2106"]
[TimeControl "180+1"]
[EndTime "9:07:41 PDT"]
[Termination "Game drawn by agreement"]

1. e4 {[%clk 0:03:00.9]} 1... e5 {[%clk 0:02:58.4]} 2. Nf3 {[%clk 0:03:00.7]}
2... Nc6 {[%clk 0:02:56.2]} 3. d4 {[%clk 0:03:00.5]} 3... exd4 {[%clk
0:02:55.7]} 4. Nxd4 {[%clk 0:03:00.5]} 4... Nf6 {[%clk 0:02:55.9]} 5. Nxc6
{[%clk 0:03:00.3]} 5... bxc6 {[%clk 0:02:55.1]} 6. e5 {[%clk 0:03:00.3]} 6...
Qe7 {[%clk 0:02:55.3]} 7. Qe2 {[%clk 0:03:00.4]} 7... Nd5 {[%clk 0:02:55.7]} 8.
c4 {[%clk 0:03:00.3]} 8... Nb6 {[%clk 0:02:55.5]} 9. Nd2 {[%clk 0:02:57.8]} 9...
g6 {[%clk 0:02:52.4]} 10. b3 {[%clk 0:02:46.9]} 10... Bg7 {[%clk 0:02:51.4]} 11.
Bb2 {[%clk 0:02:46.6]} 11... a5 {[%clk 0:02:50.9]} 12. g3 {[%clk 0:02:42.6]}
12... a4 {[%clk 0:02:44.5]} 13. Bg2 {[%clk 0:02:41.6]} 13... O-O {[%clk
0:02:37.1]} 14. O-O {[%clk 0:02:39.2]} 14... f6 {[%clk 0:02:24.6]} 15. Rae1
{[%clk 0:02:14.8]} 15... axb3 {[%clk 0:02:14.9]} 16. exf6 {[%clk 0:02:06.2]}
16... Qxe2 {[%clk 0:02:10.7]} 17. Rxe2 {[%clk 0:02:06.1]} 17... Bxf6 {[%clk
0:02:08]} 18. Bxf6 {[%clk 0:02:04.2]} 18... Rxf6 {[%clk 0:02:07.9]} 19. axb3
{[%clk 0:02:04.2]} 19... d5 {[%clk 0:01:58.8]} 20. Re8+ {[%clk 0:01:56.2]} 20...
Rf8 {[%clk 0:01:57.9]} 21. Rfe1 {[%clk 0:01:53.3]} 21... Bf5 {[%clk 0:01:54.1]}
22. R8e7 {[%clk 0:01:38.7]} 22... Rf7 {[%clk 0:01:49.9]} 23. Re8+ {[%clk
0:01:04.9]} 23... Rf8 {[%clk 0:01:48]} 24. Rxa8 {[%clk 0:00:58.1]} 24... Rxa8
{[%clk 0:01:45]} 25. Nf1 {[%clk 0:00:52.7]} 25... Kf7 {[%clk 0:01:34.8]} 26.
cxd5 {[%clk 0:00:50.9]} 26... cxd5 {[%clk 0:01:33.5]} 27. Rc1 {[%clk 0:00:50.8]}
27... Ra7 {[%clk 0:01:30.5]} 28. Ne3 {[%clk 0:00:49.5]} 28... Be6 {[%clk
0:01:29.5]} 29. f4 {[%clk 0:00:46.9]} 29... Ke7 {[%clk 0:01:15.7]} 30. Rd1
{[%clk 0:00:41.9]} 30... c6 {[%clk 0:01:13.1]} 31. b4 {[%clk 0:00:39.3]} 31...
Ra3 {[%clk 0:01:07.9]} 32. Nc2 {[%clk 0:00:37.7]} 32... Ra2 {[%clk 0:01:01.8]}
33. Nd4 {[%clk 0:00:37.9]} 33... Bd7 {[%clk 0:01:01.3]} 34. Rc1 {[%clk
0:00:33.8]} 34... Nc4 {[%clk 0:00:59.4]} 35. b5 {[%clk 0:00:29.5]} 35... Ne3
{[%clk 0:00:42.3]} 36. Re1 {[%clk 0:00:28.7]} 36... Rxg2+ {[%clk 0:00:35.5]} 37.
Kh1 {[%clk 0:00:29.1]} 37... Rd2 {[%clk 0:00:30.9]} 38. Rxe3+ {[%clk 0:00:28.8]}
38... Kd6 {[%clk 0:00:30.8]} 39. bxc6 {[%clk 0:00:18]} 39... Bh3 {[%clk
0:00:26.1]} 40. Nf3 {[%clk 0:00:18.2]} 40... Rd1+ {[%clk 0:00:24.6]} 41. Re1
{[%clk 0:00:18.4]} 41... Rxe1+ {[%clk 0:00:24]} 42. Nxe1 {[%clk 0:00:19.3]}
42... Kxc6 {[%clk 0:00:23.8]} 43. Kg1 {[%clk 0:00:19.9]} 43... Kc5 {[%clk
0:00:23.6]} 44. Kf2 {[%clk 0:00:20.1]} 44... d4 {[%clk 0:00:23.4]} 45. Ke2
{[%clk 0:00:19.3]} 45... Bf5 {[%clk 0:00:23.2]} 46. Nf3 {[%clk 0:00:18.5]} 46...
Bg4 {[%clk 0:00:21.6]} 47. Kf2 {[%clk 0:00:18.1]} 47... Bxf3 {[%clk 0:00:20.9]}
48. Kxf3 {[%clk 0:00:18.7]} 48... Kc4 {[%clk 0:00:21.5]} 49. Kf2 {[%clk
0:00:19.2]} 49... Kc3 {[%clk 0:00:21.6]} 50. g4 {[%clk 0:00:18.8]} 50... Kc2
{[%clk 0:00:21.2]} 51. f5 {[%clk 0:00:19.5]} 51... gxf5 {[%clk 0:00:20.7]} 52.
gxf5 {[%clk 0:00:19.9]} 52... d3 {[%clk 0:00:21.5]} 53. f6 {[%clk 0:00:20.6]}
53... d2 {[%clk 0:00:21.1]} 54. f7 {[%clk 0:00:21.2]} 54... d1=Q {[%clk
0:00:20]} 55. f8=Q {[%clk 0:00:21.4]} 55... Qd4+ {[%clk 0:00:18.9]} 56. Kg2
{[%clk 0:00:21]} 56... Qe4+ {[%clk 0:00:16.6]} 57. Qf3 {[%clk 0:00:20.5]}
1/2-1/2

[Event "*** SCC Grand Prix: Titled Tuesday Blitz"]
[Site "Chess.com"]
[Date "2020.06.09"]
[Round "1"]
[White "Shuvalov"]
[Black "TigrVShlyape"]
[Result "0-1"]
[WhiteElo "2448"]
[BlackElo "2906"]
[TimeControl "180+1"]
[EndTime "9:07:42 PDT"]
[Termination "TigrVShlyape won on time"]

1. Nf3 {[%clk 0:02:48.7]} 1... Nf6 {[%clk 0:02:59.1]} 2. c4 {[%clk 0:02:48.3]}
2... g6 {[%clk 0:02:58.9]} 3. Nc3 {[%clk 0:02:47.7]} 3... Bg7 {[%clk 0:02:59.3]}
4. e4 {[%clk 0:02:47.8]} 4... d6 {[%clk 0:02:59.6]} 5. d4 {[%clk 0:02:48]} 5...
O-O {[%clk 0:02:59.9]} 6. Be2 {[%clk 0:02:48.1]} 6... e5 {[%clk 0:03:00.4]} 7.
O-O {[%clk 0:02:47.5]} 7... Nc6 {[%clk 0:03:00.4]} 8. d5 {[%clk 0:02:47.4]} 8...
Ne7 {[%clk 0:03:00.6]} 9. Ne1 {[%clk 0:02:47.5]} 9... Nd7 {[%clk 0:02:57.5]} 10.
f3 {[%clk 0:02:47.5]} 10... f5 {[%clk 0:02:57.3]} 11. g4 {[%clk 0:02:47.6]}
11... f4 {[%clk 0:02:51.3]} 12. h4 {[%clk 0:02:46.5]} 12... a5 {[%clk
0:02:31.2]} 13. Bd2 {[%clk 0:02:26.2]} 13... Nc5 {[%clk 0:02:29.7]} 14. b3
{[%clk 0:02:21.2]} 14... c6 {[%clk 0:02:25]} 15. Ng2 {[%clk 0:02:12.1]} 15...
Bd7 {[%clk 0:02:14.8]} 16. Be1 {[%clk 0:02:05.5]} 16... cxd5 {[%clk 0:02:08.2]}
17. cxd5 {[%clk 0:02:05.2]} 17... b5 {[%clk 0:01:58.9]} 18. Bf2 {[%clk 0:01:44]}
18... Qb8 {[%clk 0:01:42.5]} 19. a4 {[%clk 0:01:32.5]} 19... bxa4 {[%clk
0:01:15.4]} 20. bxa4 {[%clk 0:01:32.2]} 20... Rc8 {[%clk 0:01:07.9]} 21. Rb1
{[%clk 0:01:22.6]} 21... Qc7 {[%clk 0:01:07]} 22. Nb5 {[%clk 0:01:21.5]} 22...
Qd8 {[%clk 0:01:01.7]} 23. Bxc5 {[%clk 0:00:58.5]} 23... Rxc5 {[%clk 0:00:59]}
24. Nxd6 {[%clk 0:00:40.4]} 24... Bxa4 {[%clk 0:00:45.8]} 25. Qxa4 {[%clk
0:00:41.3]} 25... Qxd6 {[%clk 0:00:46]} 26. Rfc1 {[%clk 0:00:36.3]} 26... Bf8
{[%clk 0:00:41.2]} 27. Kh2 {[%clk 0:00:29.3]} 27... Nc8 {[%clk 0:00:36.2]} 28.
Bb5 {[%clk 0:00:19]} 28... Rxc1 {[%clk 0:00:31.5]} 29. Rxc1 {[%clk 0:00:18.7]}
29... Qb4 {[%clk 0:00:32]} 30. Bc6 {[%clk 0:00:09.7]} 30... Qxa4 {[%clk
0:00:31.6]} 31. Bxa4 {[%clk 0:00:10.6]} 31... Bb4 {[%clk 0:00:29.4]} 32. Rc7
{[%clk 0:00:10.1]} 32... Nd6 {[%clk 0:00:28.4]} 33. Kg1 {[%clk 0:00:08.6]} 33...
Rf8 {[%clk 0:00:26.5]} 34. Kf1 {[%clk 0:00:08.2]} 34... Rf7 {[%clk 0:00:26.7]}
35. Rxf7 {[%clk 0:00:07.1]} 35... Kxf7 {[%clk 0:00:26.3]} 36. Ke2 {[%clk
0:00:08]} 36... Ke7 {[%clk 0:00:23.1]} 37. Kd3 {[%clk 0:00:08.2]} 37... h6
{[%clk 0:00:22.7]} 38. h5 {[%clk 0:00:07.8]} 38... g5 {[%clk 0:00:22.6]} 39. Ke2
{[%clk 0:00:07.5]} 39... Kd8 {[%clk 0:00:22.8]} 40. Ne1 {[%clk 0:00:07.7]} 40...
Bxe1 {[%clk 0:00:22.1]} 41. Kxe1 {[%clk 0:00:08.6]} 41... Kc7 {[%clk 0:00:22.5]}
42. Kd2 {[%clk 0:00:09]} 42... Kb6 {[%clk 0:00:23.1]} 43. Kd3 {[%clk 0:00:09.1]}
43... Kc5 {[%clk 0:00:23.5]} 44. Kc3 {[%clk 0:00:09.2]} 44... Nc4 {[%clk
0:00:22.6]} 45. Be8 {[%clk 0:00:07.4]} 45... Nb6 {[%clk 0:00:18.7]} 46. Bc6
{[%clk 0:00:06.1]} 46... a4 {[%clk 0:00:18.5]} 47. Be8 {[%clk 0:00:05.5]} 47...
a3 {[%clk 0:00:18.4]} 48. Kb3 {[%clk 0:00:05.8]} 48... Nc4 {[%clk 0:00:18.9]}
0-1

[Event "*** SCC Grand Prix: Titled Tuesday Blitz"]
[Site "Chess.com"]
[Date "2020.06.09"]
[Round "1"]
[White "GregShahade"]
[Black "novocane"]
[Result "1-0"]
[WhiteElo "2558"]
[BlackElo "2195"]
[TimeControl "180+1"]
[EndTime "9:07:43 PDT"]
[Termination "GregShahade won by resignation"]

1. e4 {[%clk 0:02:54.3]} 1... c5 {[%clk 0:02:59.4]} 2. Nf3 {[%clk 0:02:51.3]}
2... Nc6 {[%clk 0:02:59.2]} 3. d4 {[%clk 0:02:49.9]} 3... cxd4 {[%clk
0:03:00.1]} 4. Nxd4 {[%clk 0:02:48.5]} 4... e5 {[%clk 0:03:00.8]} 5. Nb5 {[%clk
0:02:46.8]} 5... d6 {[%clk 0:03:00.1]} 6. c4 {[%clk 0:02:43.9]} 6... Be7 {[%clk
0:02:59.1]} 7. Bd3 {[%clk 0:02:32.8]} 7... Be6 {[%clk 0:02:48.9]} 8. O-O {[%clk
0:02:31.3]} 8... Rc8 {[%clk 0:02:48.1]} 9. N5c3 {[%clk 0:02:24.4]} 9... Bg5
{[%clk 0:02:44.9]} 10. Bxg5 {[%clk 0:02:00.2]} 10... Qxg5 {[%clk 0:02:45.8]} 11.
Nd2 {[%clk 0:02:00.4]} 11... Nf6 {[%clk 0:02:20.4]} 12. Nd5 {[%clk 0:01:41.7]}
12... O-O {[%clk 0:02:10.9]} 13. Nf3 {[%clk 0:01:29.8]} 13... Qh6 {[%clk
0:01:52.4]} 14. Qc1 {[%clk 0:01:18.5]} 14... Qg6 {[%clk 0:01:11.9]} 15. Nxf6+
{[%clk 0:00:35.6]} 15... Qxf6 {[%clk 0:01:07.8]} 16. Qe3 {[%clk 0:00:35.4]}
16... Bg4 {[%clk 0:00:58.6]} 17. Nd2 {[%clk 0:00:31.6]} 17... Nd4 {[%clk
0:00:56.8]} 18. f3 {[%clk 0:00:30]} 18... Be6 {[%clk 0:00:52.6]} 19. Rac1 {[%clk
0:00:29.1]} 19... h6 {[%clk 0:00:39]} 20. Rfd1 {[%clk 0:00:28.9]} 20... Rfd8
{[%clk 0:00:38.2]} 21. Bf1 {[%clk 0:00:27.8]} 21... Rc7 {[%clk 0:00:28.9]} 22.
Nb3 {[%clk 0:00:27.6]} 22... Nxb3 {[%clk 0:00:21]} 23. Qxb3 {[%clk 0:00:28.5]}
23... a6 {[%clk 0:00:20.5]} 24. Qb6 {[%clk 0:00:25.4]} 24... Rc6 {[%clk
0:00:19.4]} 25. Qxb7 {[%clk 0:00:23.3]} 25... Rdc8 {[%clk 0:00:16.8]} 26. b3
{[%clk 0:00:19.5]} 26... Qg5 {[%clk 0:00:16.6]} 27. Qb4 {[%clk 0:00:17.5]} 27...
Qe3+ {[%clk 0:00:16.1]} 28. Kh1 {[%clk 0:00:17.9]} 28... Qf2 {[%clk 0:00:09.9]}
29. Qd2 {[%clk 0:00:17.2]} 29... Qh4 {[%clk 0:00:09.9]} 30. Qe3 {[%clk
0:00:15.8]} 30... f5 {[%clk 0:00:07.6]} 31. exf5 {[%clk 0:00:15.1]} 31... Bxf5
{[%clk 0:00:07.6]} 32. Bd3 {[%clk 0:00:15.8]} 32... Bxd3 {[%clk 0:00:07.7]} 33.
Rxd3 {[%clk 0:00:16.4]} 33... Kh8 {[%clk 0:00:07.7]} 34. Rcd1 {[%clk 0:00:16.6]}
34... Rf8 {[%clk 0:00:05.8]} 35. Rxd6 {[%clk 0:00:14.9]} 35... Rxd6 {[%clk
0:00:05.7]} 36. Rxd6 {[%clk 0:00:15.8]} 36... Rd8 {[%clk 0:00:06.1]} 37. Rxd8+
{[%clk 0:00:15.1]} 37... Qxd8 {[%clk 0:00:06]} 38. h3 {[%clk 0:00:15.2]} 38...
Qd1+ {[%clk 0:00:05]} 39. Kh2 {[%clk 0:00:15.7]} 39... Qa1 {[%clk 0:00:05.8]}
40. a4 {[%clk 0:00:15.1]} 40... Qb2 {[%clk 0:00:05.3]} 41. c5 {[%clk 0:00:15.2]}
41... Qc2 {[%clk 0:00:05]} 42. Qxe5 {[%clk 0:00:14.7]} 42... Qxb3 {[%clk
0:00:05.6]} 43. c6 {[%clk 0:00:13.9]} 43... Qc2 {[%clk 0:00:04.3]} 44. c7 {[%clk
0:00:13.5]} 1-0

[Event "*** SCC Grand Prix: Titled Tuesday Blitz"]
[Site "Chess.com"]
[Date "2020.06.09"]
[Round "1"]
[White "David_Paravyan"]
[Black "cukus"]
[Result "1-0"]
[WhiteElo "2995"]
[BlackElo "2467"]
[TimeControl "180+1"]
[EndTime "9:07:45 PDT"]
[Termination "David_Paravyan won on time"]

1. e4 {[%clk 0:02:56.2]} 1... c6 {[%clk 0:02:50.3]} 2. d4 {[%clk 0:02:56.2]}
2... d5 {[%clk 0:02:49.1]} 3. e5 {[%clk 0:02:56.8]} 3... c5 {[%clk 0:02:48]} 4.
c3 {[%clk 0:02:56.7]} 4... Nc6 {[%clk 0:02:29.4]} 5. a3 {[%clk 0:02:56.6]} 5...
e6 {[%clk 0:02:17.1]} 6. Nf3 {[%clk 0:02:50.1]} 6... c4 {[%clk 0:02:00.7]} 7.
Bf4 {[%clk 0:02:37.1]} 7... Na5 {[%clk 0:01:35.3]} 8. Nbd2 {[%clk 0:02:36.7]}
8... Qb6 {[%clk 0:01:30.5]} 9. Rb1 {[%clk 0:02:35.9]} 9... Bd7 {[%clk
0:01:28.5]} 10. Be2 {[%clk 0:02:33.8]} 10... Ne7 {[%clk 0:01:27]} 11. O-O {[%clk
0:02:33.2]} 11... Qc7 {[%clk 0:01:24.6]} 12. Qc1 {[%clk 0:01:43]} 12... Ba4
{[%clk 0:01:07]} 13. Bd1 {[%clk 0:01:38.9]} 13... Qd7 {[%clk 0:01:06.2]} 14. h4
{[%clk 0:01:09]} 14... Nc8 {[%clk 0:01:01.4]} 15. h5 {[%clk 0:01:06.2]} 15... h6
{[%clk 0:00:58.7]} 16. b4 {[%clk 0:00:59.5]} 16... cxb3 {[%clk 0:00:56.6]} 17.
Nxb3 {[%clk 0:01:00]} 17... Nxb3 {[%clk 0:00:56.1]} 18. Bxb3 {[%clk 0:01:00.9]}
18... Bxb3 {[%clk 0:00:55.8]} 19. Rxb3 {[%clk 0:01:01.8]} 19... Nb6 {[%clk
0:00:56]} 20. Qb1 {[%clk 0:00:50.2]} 20... Be7 {[%clk 0:00:54.8]} 21. g4 {[%clk
0:00:50]} 21... O-O-O {[%clk 0:00:53.1]} 22. a4 {[%clk 0:00:46.7]} 22... Kb8
{[%clk 0:00:52.6]} 23. a5 {[%clk 0:00:46.4]} 23... Nc4 {[%clk 0:00:52.5]} 24.
Qa2 {[%clk 0:00:44.7]} 24... Ka8 {[%clk 0:00:49.7]} 25. Rfb1 {[%clk 0:00:44.4]}
25... Rb8 {[%clk 0:00:50]} 26. Nd2 {[%clk 0:00:37.7]} 26... g5 {[%clk 0:00:48]}
27. hxg6 {[%clk 0:00:31.2]} 27... fxg6 {[%clk 0:00:47.3]} 28. Nxc4 {[%clk
0:00:31.1]} 28... dxc4 {[%clk 0:00:47.3]} 29. Rb5 {[%clk 0:00:31.7]} 29... g5
{[%clk 0:00:37.3]} 30. Bg3 {[%clk 0:00:31.4]} 30... Qc6 {[%clk 0:00:35.6]} 31.
d5 {[%clk 0:00:30.6]} 31... exd5 {[%clk 0:00:32.4]} 32. e6 {[%clk 0:00:24.1]}
32... Qxe6 {[%clk 0:00:32.4]} 33. a6 {[%clk 0:00:18.1]} 33... b6 {[%clk
0:00:28.5]} 34. Qd2 {[%clk 0:00:09.5]} 34... Rbd8 {[%clk 0:00:23.1]} 35. Re1
{[%clk 0:00:10.1]} 35... Qd7 {[%clk 0:00:21.6]} 36. Rbb1 {[%clk 0:00:07.3]}
36... Bc5 {[%clk 0:00:19.9]} 37. Qe2 {[%clk 0:00:05.2]} 37... Rhe8 {[%clk
0:00:19]} 38. Qf3 {[%clk 0:00:05.8]} 38... Rxe1+ {[%clk 0:00:17.3]} 39. Rxe1
{[%clk 0:00:05.7]} 39... Qc6 {[%clk 0:00:17.2]} 40. Re5 {[%clk 0:00:05.2]} 40...
Rf8 {[%clk 0:00:10.6]} 41. Rxd5 {[%clk 0:00:02.9]} 41... Rc8 {[%clk 0:00:05]}
42. Rd8 {[%clk 0:00:02.2]} 1-0

[Event "*** SCC Grand Prix: Titled Tuesday Blitz"]
[Site "Chess.com"]
[Date "2020.06.09"]
[Round "1"]
[White "Pintacara"]
[Black "Dinamo81"]
[Result "1-0"]
[WhiteElo "2329"]
[BlackElo "2619"]
[TimeControl "180+1"]
[EndTime "9:07:49 PDT"]
[Termination "Pintacara won on time"]

1. d4 {[%clk 0:02:59.5]} 1... d5 {[%clk 0:02:57.8]} 2. Bg5 {[%clk 0:02:59.6]}
2... h6 {[%clk 0:02:55.6]} 3. Bh4 {[%clk 0:02:56.2]} 3... c6 {[%clk 0:02:52.3]}
4. c3 {[%clk 0:02:55.6]} 4... Qb6 {[%clk 0:02:50.6]} 5. Qb3 {[%clk 0:02:55.8]}
5... Bf5 {[%clk 0:02:48.3]} 6. Nd2 {[%clk 0:02:54.2]} 6... Nd7 {[%clk
0:02:44.9]} 7. f3 {[%clk 0:02:53.6]} 7... Ngf6 {[%clk 0:02:43.7]} 8. Nh3 {[%clk
0:02:52.5]} 8... e6 {[%clk 0:02:29.6]} 9. Nf2 {[%clk 0:02:52]} 9... Bh7 {[%clk
0:02:17.8]} 10. e4 {[%clk 0:02:51.5]} 10... Be7 {[%clk 0:02:01.2]} 11. Bd3
{[%clk 0:02:50.2]} 11... g5 {[%clk 0:01:39.1]} 12. Bg3 {[%clk 0:02:49.3]} 12...
Nh5 {[%clk 0:01:39.6]} 13. O-O-O {[%clk 0:02:36.4]} 13... Qxb3 {[%clk
0:01:28.3]} 14. axb3 {[%clk 0:02:34.5]} 14... f5 {[%clk 0:01:21.8]} 15. exf5
{[%clk 0:02:16]} 15... exf5 {[%clk 0:01:22.7]} 16. Be5 {[%clk 0:01:51.3]} 16...
Nxe5 {[%clk 0:01:21.9]} 17. dxe5 {[%clk 0:01:52.2]} 17... Nf4 {[%clk 0:01:21.9]}
18. Bf1 {[%clk 0:01:49.4]} 18... Kf7 {[%clk 0:01:18.9]} 19. Nd3 {[%clk
0:01:43.2]} 19... Ne6 {[%clk 0:01:18.6]} 20. g3 {[%clk 0:01:40.6]} 20... a5
{[%clk 0:01:16.7]} 21. f4 {[%clk 0:01:36.4]} 21... Bg6 {[%clk 0:01:16.9]} 22.
Be2 {[%clk 0:01:35.2]} 22... b5 {[%clk 0:01:12.3]} 23. h4 {[%clk 0:01:32.8]}
23... gxh4 {[%clk 0:01:08.7]} 24. gxh4 {[%clk 0:01:33.7]} 24... Rhg8 {[%clk
0:01:04.7]} 25. h5 {[%clk 0:01:31.2]} 25... Bh7 {[%clk 0:01:04]} 26. Rdg1 {[%clk
0:01:31.5]} 26... Rxg1+ {[%clk 0:01:01.4]} 27. Rxg1 {[%clk 0:01:32.4]} 27... Rg8
{[%clk 0:01:01.3]} 28. Rxg8 {[%clk 0:01:31.6]} 28... Bxg8 {[%clk 0:00:57.6]} 29.
c4 {[%clk 0:01:23.3]} 29... b4 {[%clk 0:00:50.1]} 30. Bf3 {[%clk 0:01:18.6]}
30... Nc7 {[%clk 0:00:45.4]} 31. Nf1 {[%clk 0:01:13.9]} 31... Bh4 {[%clk
0:00:42.7]} 32. Ne3 {[%clk 0:01:11.4]} 32... dxc4 {[%clk 0:00:23]} 33. bxc4
{[%clk 0:01:10.6]} 33... Bh7 {[%clk 0:00:18]} 34. Bxc6 {[%clk 0:01:09.4]} 34...
Bg3 {[%clk 0:00:16.7]} 35. Bd5+ {[%clk 0:01:07.8]} 35... Ke7 {[%clk 0:00:14.9]}
36. b3 {[%clk 0:00:57.5]} 36... Ne6 {[%clk 0:00:14.7]} 37. Bxe6 {[%clk
0:00:56.1]} 37... Kxe6 {[%clk 0:00:15.6]} 38. Nc5+ {[%clk 0:00:46.9]} 38... Kf7
{[%clk 0:00:13.8]} 39. Nd5 {[%clk 0:00:45.5]} 39... Bg8 {[%clk 0:00:12.7]} 40.
e6+ {[%clk 0:00:42.5]} 40... Ke8 {[%clk 0:00:11.5]} 41. Nf6+ {[%clk 0:00:40.6]}
41... Kf8 {[%clk 0:00:09.6]} 42. e7+ {[%clk 0:00:35.3]} 42... Kxe7 {[%clk
0:00:09.8]} 43. Nxg8+ {[%clk 0:00:33]} 43... Kf8 {[%clk 0:00:08.8]} 44. Nf6
{[%clk 0:00:26.3]} 44... Bxf4+ {[%clk 0:00:08.3]} 45. Kd1 {[%clk 0:00:24.5]}
45... Kf7 {[%clk 0:00:09.2]} 46. Nd5 {[%clk 0:00:24.2]} 46... Be5 {[%clk
0:00:07]} 47. Nb7 {[%clk 0:00:22.7]} 47... a4 {[%clk 0:00:05.7]} 48. bxa4 {[%clk
0:00:20.7]} 48... b3 {[%clk 0:00:06]} 49. Nc5 {[%clk 0:00:19.5]} 49... b2 {[%clk
0:00:05.1]} 50. Kc2 {[%clk 0:00:19.9]} 50... f4 {[%clk 0:00:02.3]} 51. Nd3
{[%clk 0:00:20]} 1-0

[Event "*** SCC Grand Prix: Titled Tuesday Blitz"]
[Site "Chess.com"]
[Date "2020.06.09"]
[Round "1"]
[White "Roman_Ovetchkin"]
[Black "publicaccountcze"]
[Result "1-0"]
[WhiteElo "2593"]
[BlackElo "2263"]
[TimeControl "180+1"]
[EndTime "9:07:49 PDT"]
[Termination "Roman_Ovetchkin won by resignation"]

1. d4 {[%clk 0:03:00.3]} 1... Nf6 {[%clk 0:02:59.5]} 2. c4 {[%clk 0:02:59.1]}
2... e6 {[%clk 0:02:59.2]} 3. Nf3 {[%clk 0:02:58]} 3... d5 {[%clk 0:02:58]} 4.
g3 {[%clk 0:02:57.7]} 4... c6 {[%clk 0:02:56]} 5. Bg2 {[%clk 0:02:57.3]} 5...
Bd6 {[%clk 0:02:56]} 6. Nc3 {[%clk 0:02:55.8]} 6... O-O {[%clk 0:02:53.2]} 7.
O-O {[%clk 0:02:49.8]} 7... Nbd7 {[%clk 0:02:52.7]} 8. Nd2 {[%clk 0:02:45.8]}
8... Be7 {[%clk 0:02:22.6]} 9. e4 {[%clk 0:02:40.9]} 9... dxe4 {[%clk
0:02:22.4]} 10. Ndxe4 {[%clk 0:02:39.4]} 10... Nxe4 {[%clk 0:02:22.3]} 11. Nxe4
{[%clk 0:02:39.6]} 11... Nf6 {[%clk 0:02:22.8]} 12. Nc3 {[%clk 0:02:17.9]} 12...
c5 {[%clk 0:02:06.7]} 13. Be3 {[%clk 0:02:14.2]} 13... cxd4 {[%clk 0:01:58.6]}
14. Qxd4 {[%clk 0:02:15.1]} 14... Qxd4 {[%clk 0:01:51.8]} 15. Bxd4 {[%clk
0:02:16]} 15... a6 {[%clk 0:01:51.7]} 16. Rfd1 {[%clk 0:02:11.2]} 16... Rb8
{[%clk 0:01:37]} 17. Be5 {[%clk 0:02:01.9]} 17... Ra8 {[%clk 0:01:36.5]} 18. Na4
{[%clk 0:02:01.3]} 18... Nd7 {[%clk 0:01:20.3]} 19. Bc7 {[%clk 0:01:39]} 19...
Ra7 {[%clk 0:00:54.6]} 20. Nb6 {[%clk 0:01:26]} 20... Nxb6 {[%clk 0:00:29.6]}
21. Bxb6 {[%clk 0:01:24.2]} 21... Ra8 {[%clk 0:00:30.5]} 22. c5 {[%clk
0:00:24.3]} 22... a5 {[%clk 0:00:29]} 23. Rd2 {[%clk 0:00:19.3]} 23... a4 {[%clk
0:00:27.7]} 24. Rc1 {[%clk 0:00:16.7]} 24... Ra6 {[%clk 0:00:20.5]} 25. f4
{[%clk 0:00:14.5]} 25... Bf6 {[%clk 0:00:18.9]} 26. Kf2 {[%clk 0:00:13.7]} 26...
a3 {[%clk 0:00:15.8]} 27. b3 {[%clk 0:00:13.8]} 27... g5 {[%clk 0:00:14.8]} 28.
Rcd1 {[%clk 0:00:12.9]} 28... gxf4 {[%clk 0:00:14]} 29. gxf4 {[%clk 0:00:13.4]}
29... Bc3 {[%clk 0:00:14]} 30. Rd3 {[%clk 0:00:13.2]} 30... Bf6 {[%clk
0:00:13.8]} 31. Rg3+ {[%clk 0:00:11.2]} 31... Kh8 {[%clk 0:00:13.7]} 32. Bf1
{[%clk 0:00:11.1]} 32... Bh4 {[%clk 0:00:13.4]} 33. Bxa6 {[%clk 0:00:10.4]}
33... bxa6 {[%clk 0:00:13.7]} 34. c6 {[%clk 0:00:10.7]} 34... Bxg3+ {[%clk
0:00:13.2]} 35. hxg3 {[%clk 0:00:10.3]} 35... Kg7 {[%clk 0:00:12.7]} 36. Ke3
{[%clk 0:00:08.1]} 36... f5 {[%clk 0:00:10.4]} 37. Bc5 {[%clk 0:00:07.8]} 37...
Rf7 {[%clk 0:00:08]} 38. Bxa3 {[%clk 0:00:08.3]} 38... Rc7 {[%clk 0:00:07.1]}
39. Rc1 {[%clk 0:00:08.6]} 39... Kf7 {[%clk 0:00:05.8]} 40. Bd6 {[%clk
0:00:09.1]} 40... Ra7 {[%clk 0:00:02]} 41. b4 {[%clk 0:00:09.8]} 41... a5 {[%clk
0:00:01.9]} 42. b5 {[%clk 0:00:10.2]} 42... a4 {[%clk 0:00:01.8]} 43. b6 {[%clk
0:00:08.9]} 43... Ra5 {[%clk 0:00:02.2]} 44. b7 {[%clk 0:00:08.8]} 44... Bxb7
{[%clk 0:00:02.4]} 45. cxb7 {[%clk 0:00:09.7]} 45... Rb5 {[%clk 0:00:03.2]} 46.
b8=Q {[%clk 0:00:08.9]} 1-0